fUST/lending_fUST_20250528
["ID","MTS","AMOUNT","RATE_DAILY","PERIOD"]
[362651721,1748386250786,-1000.0,0.00024,30]
[362651723,1748386250795,-160.0,0.00024,7]
[362651725,1748386250804,-203.10798183,0.00024038,10]
[362651727,1748386250814,-330.82496588,0.00024068,2]
[362651729,1748386250823,-215.0738,0.0002409,2]
[362651731,1748386250832,-505.1841138,0.00024109,2]
[362651733,1748386250842,-221.565,0.00024109,2]
[362651735,1748386250851,-430.0,0.00024109,2]
[362651737,1748386250861,-563.22,0.00024109,2]
[362651739,1748386250870,-908.14,0.00024109,2]
[362651741,1748386250880,-553.19,0.00024109,2]
[362651743,1748386250889,-430.0,0.00024109,2]
[362651745,1748386250899,-430.0,0.00024109,2]
[362651747,1748386250908,-495.1,0.00024109,2]
[362651749,1748386250918,-430.0,0.00024109,2]
[362651751,1748386250928,-163.0,0.00024164,7]
[362651753,1748386250937,-2200.0,0.00024168,2]
[362651755,1748386250946,-2000.0,0.00024186,2]
[362651757,1748386250955,-203.10798183,0.0002421,10]
[362651759,1748386250965,-203.10798183,0.00024383,11]
[362651761,1748386250975,-314.53638474,0.00024383,2]
[362651763,1748386250984,-563.22,0.00024383,2]
[362651765,1748386250993,-908.14,0.00024383,2]
[362651767,1748386251002,-553.19,0.00024383,2]
[362651769,1748386251011,-430.0,0.00024383,2]
[362651771,1748386251022,-430.0,0.00024383,2]
[362651773,1748386251031,-495.1,0.00024383,2]
[362651775,1748386251040,-252.7969161,0.00024383,2]
[362651777,1748386251050,-4273.28,0.00024384,2]
[362651779,1748386251059,-637.0,0.000244,2]
[362651781,1748386251068,-500.0,0.00024452,2]
[362651783,1748386251077,-1000.0,0.000245,30]
[362651785,1748386251086,-881.255562,0.000245,3]
[362651787,1748386251096,-55594.3,0.000245,2]
[362651789,1748386251105,-500.0,0.000245,2]
[362651791,1748386251114,-250.0,0.0002452,30]
[362651793,1748386251123,-203.10798183,0.00024555,11]
[362651795,1748386251132,-463.363,0.00024586,15]
[362651797,1748386251141,-363.6506951,0.0002463,2]
[362651799,1748386251151,-443.13,0.00024657,3]
[362651800,1748386251160,-563.22,0.00024657,2]
[362651802,1748386251169,-908.14,0.00024657,2]
[362651804,1748386251178,-553.19,0.00024657,2]
[362651806,1748386251187,-430.0,0.00024657,2]
[362651808,1748386251196,-361.58406678,0.00024657,2]
[362651810,1748386251206,-495.1,0.00024657,2]
[362651812,1748386251215,-364.0317976,0.00024658,2]
[362651825,1748386251328,-364.0317976,0.00024658,2]
[362651827,1748386251338,-364.0317976,0.00024658,2]
[362651829,1748386251348,-364.0317976,0.00024658,2]
[362651831,1748386251358,-364.0317976,0.00024658,2]
[362651833,1748386251367,-274.3394953,0.00024658,2]
[362651835,1748386251377,-185.13105193,0.00024658,2]
[362651837,1748386251387,-203.10798183,0.00024728,11]
[362651839,1748386251396,-250.0,0.0002475,30]
[362651841,1748386251406,-800.0,0.00024763,2]
[362651843,1748386251416,-158.3360012,0.00024795,2]
[362651845,1748386251425,-176.2895652,0.00024795,2]
[362651847,1748386251435,-154.2938119,0.00024795,2]
[362651850,1748386251445,-176.2895652,0.00024795,2]
[362651851,1748386251454,-158.3360012,0.00024795,2]
[362651854,1748386251463,-158.3360012,0.00024795,2]
[362651856,1748386251473,-176.2895652,0.00024795,2]
[362651857,1748386251482,-158.3360012,0.00024795,2]
[362651860,1748386251492,-158.3360012,0.00024795,2]
[362651862,1748386251501,-161.8647877,0.00024795,2]
[362651864,1748386251510,-800.0,0.00024795,2]
[362651866,1748386251520,-849.14,0.000248,7]
[362651868,1748386251530,-5264.45,0.000248,2]
[362651870,1748386251539,-174988.46,0.000248,7]
[362651872,1748386251548,-3219.2,0.000248,7]
[362651874,1748386251557,-570.73762024,0.000248,2]
[362651876,1748386251567,-800.0,0.00024808,2]
[362651878,1748386251576,-3929.3067015,0.00024856,2]
[362651880,1748386251586,-800.0,0.00024868,2]
[362651882,1748386251595,-570.7376202,0.00024873,2]
[362651884,1748386251604,-671205.866769,0.000249,2]
[362651886,1748386251614,-153.25,0.000249,31]
[362651888,1748386251624,-153.25,0.000249,31]
[362651890,1748386251633,-153.25,0.000249,31]
[362651892,1748386251642,-153.25,0.000249,31]
[362651894,1748386251651,-153.25,0.000249,31]
[362651896,1748386251660,-153.25,0.000249,31]
[362651898,1748386251670,-153.25,0.000249,31]
[362651900,1748386251680,-153.25,0.000249,31]
[362651902,1748386251689,-153.25,0.000249,31]
[362651904,1748386251698,-153.25,0.000249,31]
[362651906,1748386251707,-153.25,0.000249,31]
[362651908,1748386251717,-153.25,0.000249,31]
[362651910,1748386251726,-153.25,0.000249,31]
[362651912,1748386251736,-153.25,0.000249,31]
[362651914,1748386251747,-153.25,0.000249,31]
[362651916,1748386251756,-153.25,0.000249,31]
[362651918,1748386251765,-153.25,0.000249,31]
[362651920,1748386251775,-153.25,0.000249,31]
[362651922,1748386251784,-330.82496588,0.000249,2]
[362651924,1748386251793,-203.10798183,0.000249,12]
[362651926,1748386251802,-800.0,0.00024922,2]
[362651928,1748386251811,-563.22,0.00024931,2]
[362651930,1748386251820,-908.14,0.00024931,2]
[362651932,1748386251830,-553.19,0.00024931,2]
[362651934,1748386251839,-553.99072916,0.00024931,2]
[362651936,1748386251848,-495.1,0.00024931,2]
[362651938,1748386251857,-570.7376202,0.00024946,2]
[362651940,1748386251867,-800.0,0.00024968,2]
[362651942,1748386251876,-20507.07344563,0.00024982,5]
[362651944,1748386251885,-437.86,0.0002499,10]
[362651946,1748386251895,-364.88,0.0002499,10]
[362651948,1748386251904,-304.07,0.0002499,10]
[362651950,1748386251913,-253.39,0.0002499,10]
[362651952,1748386251923,-229.18805157,0.00025,3]
[362651955,1748386251933,-160.0,0.00025,3]
[362651956,1748386251943,-160.0,0.00025,3]
[362651959,1748386251952,-10375.14667802,0.00025,3]
[362651961,1748386251962,-20055.52075814,0.00025,2]
[362651963,1748386251972,-509150.91977458,0.00025,30]
[362651965,1748386251986,-7312.22045498,0.00025,30]
[362654589,1748386740120,-300.0,0.00019177,2]
[362654590,1748386740143,-300.0,0.00019177,2]
[362654591,1748386740166,-300.0,0.00019177,2]
[362654592,1748386740191,-332.58,0.00019178,2]
[362654593,1748386740216,-430.0,0.00019178,2]
[362654594,1748386740239,-356.24062358,0.00019178,2]
[362654595,1748386740263,-430.0,0.00019178,2]
[362654596,1748386740287,-430.0,0.00019178,2]
[362654597,1748386740311,-517.12441166,0.00019178,2]
[362654598,1748386740334,-430.0,0.00019178,2]
[362654599,1748386740356,-424.05496476,0.00019178,2]
[362654608,1748387090962,329.768825,0.00013699,2]
[362654633,1748387432788,-3873.84781195,0.00018474,2]
[362654636,1748387432798,-300.0,0.0001866,2]
[362654638,1748387432809,-7223.4452685,0.00018661,2]
[362654640,1748387432818,-183.4496969,0.00018882,2]
[362654642,1748387432828,-430.0,0.00019178,2]
[362654644,1748387432837,-430.0,0.00019178,2]
[362654646,1748387432846,-430.0,0.00019178,2]
[362654647,1748387432856,-430.0,0.00019178,2]
[362654650,1748387432865,-430.0,0.00019178,2]
[362654652,1748387432875,-946.1573606,0.00019178,2]
[362654654,1748387432884,-158.0,0.0002,2]
[362654655,1748387432893,-80.24456772,0.00020045,2]
[362654658,1748387432904,-158.80364316,0.00020045,2]
[362654659,1748387432914,-430.0,0.00020045,2]
[362654662,1748387432923,-1220.05582684,0.00020046,2]
[362654955,1748387438756,-3596.42878284,0.00020046,2]
[362654957,1748387438769,-764.28807615,0.00020046,2]
[362655206,1748387441134,-850.41025125,0.00020046,2]
[362655209,1748387441146,-13889.51409101,0.00020046,2]
[362655774,1748387446959,-4579.30297191,0.00020046,2]
[362655776,1748387446968,-329.768825,0.00020187,2]
[362655778,1748387446978,-160.0,0.00020303,2]
[362655780,1748387446988,-160.0,0.00020303,2]
[362655782,1748387446997,-842.5625,0.00020303,2]
[362655784,1748387447006,-423.16111059,0.00020303,2]
[362655787,1748387447016,-229.18805157,0.00020303,2]
[362655789,1748387447026,-160.0,0.00020303,2]
[362655791,1748387447035,-212.62946336,0.00020303,2]
[362655793,1748387447044,-160.0,0.00020303,2]
[362655795,1748387447054,-531.58638478,0.00020818,2]
[362655797,1748387447064,-500.0,0.00020818,2]
[362655799,1748387447074,-500.0,0.00020818,2]
[362655801,1748387447083,-200.0,0.00020818,2]
[362655803,1748387447093,-204.06213058,0.00020818,2]
[362655805,1748387447105,-295.93786942,0.00020818,2]
[362655807,1748387447115,-500.0,0.00020818,2]
[362655809,1748387447124,-500.0,0.00020818,2]
[362655811,1748387447134,-167.34390284,0.00020818,2]
[362658208,1748387655031,-251.03120381,0.000189,2]
[362658209,1748387655055,-430.0,0.00019178,2]
[362658210,1748387655082,-430.0,0.00019178,2]
[362658211,1748387655105,-227.640084,0.00019345,2]
[362658212,1748387655127,-2847.4195424,0.0001992,2]
[362658213,1748387655151,-192.0,0.00020044,2]
[362658214,1748387655178,-486.53,0.00020045,2]
[362658215,1748387655206,-430.0,0.00020045,2]
[362658216,1748387655230,-430.0,0.00020045,2]
[362658217,1748387655254,-430.0,0.00020045,2]
[362658218,1748387655277,-406.52087163,0.00020045,2]
[362658219,1748387655300,-437.15110351,0.00020045,2]
[362658220,1748387655323,-430.0,0.00020045,2]
[362658221,1748387655345,-430.0,0.00020045,2]
[362658222,1748387655368,-430.0,0.00020045,2]
[362658223,1748387655392,-430.0,0.00020045,2]
[362658224,1748387655415,-430.0,0.00020045,2]
[362658225,1748387655438,-430.0,0.00020045,2]
[362658226,1748387655459,-160.0,0.00020303,2]
[362658227,1748387655481,-210.4267901,0.00020303,2]
[362658228,1748387655502,-842.5625,0.00020303,2]
[362658229,1748387655524,-229.18805157,0.00020303,2]
[362658230,1748387655545,-160.0,0.00020303,2]
[362658231,1748387655570,-159.52550825,0.00020318,2]
[362658232,1748387655592,-1660.00434473,0.00020319,2]
[362658242,1748388209397,325.235539,0.00013699,2]
[362658243,1748388245704,281200.0,0.00024657,120]
[362658250,1748388332284,-200.0,0.00018711,2]
[362658298,1748388449098,-113.94113085,0.00018711,2]
[362658299,1748388449120,-200.0,0.00019042,2]
[362658383,1748388632092,-300.0,0.00019042,2]
[362658385,1748388632102,-345.0,0.00019042,2]
[362658388,1748388632111,-4562.95561271,0.00019043,2]
[362658788,1748388637891,-20337.04438729,0.00019043,2]
[362658789,1748388637901,-430.0,0.00019178,2]
[362658790,1748388637910,-430.0,0.00019178,2]
[362658791,1748388637922,-430.0,0.00019178,2]
[362658792,1748388637932,-430.0,0.00019178,2]
[362658793,1748388637941,-430.0,0.00019178,2]
[362658794,1748388637951,-430.0,0.00019178,2]
[362658795,1748388637960,-430.0,0.00019178,2]
[362658796,1748388637970,-334.88574428,0.00019178,2]
[362658797,1748388637979,-400.0,0.00019178,2]
[362658798,1748388637989,-430.0,0.00019178,2]
[362658799,1748388637998,-430.0,0.00019178,2]
[362658800,1748388638008,-430.0,0.00019178,2]
[362658801,1748388638018,-430.0,0.00019178,2]
[362658802,1748388638030,-430.0,0.00019178,2]
[362658803,1748388638039,-430.0,0.00019178,2]
[362658804,1748388638049,-430.0,0.00019178,2]
[362658805,1748388638058,-430.0,0.00019178,2]
[362658806,1748388638069,-430.0,0.00019178,2]
[362658807,1748388638078,-430.0,0.00019452,2]
[362658808,1748388638088,-430.0,0.00019452,2]
[362658809,1748388638097,-430.0,0.00019452,2]
[362658810,1748388638108,-430.0,0.00019452,2]
[362658811,1748388638117,-430.0,0.00019452,2]
[362658812,1748388638127,-430.0,0.00019452,2]
[362658813,1748388638136,-430.0,0.00019452,2]
[362658814,1748388638145,-430.0,0.00019452,2]
[362658815,1748388638155,-430.0,0.00019452,2]
[362658816,1748388638164,-430.0,0.00019452,2]
[362658817,1748388638175,-430.0,0.00019452,2]
[362658818,1748388638185,-430.0,0.00019452,2]
[362658819,1748388638198,-430.0,0.00019452,2]
[362658820,1748388638208,-430.0,0.00019452,2]
[362658821,1748388638217,-430.0,0.00019726,2]
[362658822,1748388638226,-430.0,0.00019726,2]
[362658823,1748388638236,-430.0,0.00019726,2]
[362658824,1748388638245,-430.0,0.00019726,2]
[362658825,1748388638255,-430.0,0.00019726,2]
[362658826,1748388638265,-430.0,0.00019726,2]
[362658827,1748388638275,-184.37663794,0.00019941,2]
[362658828,1748388638285,-430.0,0.0002,2]
[362658829,1748388638295,-561.4,0.0002,2]
[362658830,1748388638304,-430.0,0.0002,2]
[362658831,1748388638313,-430.0,0.0002,2]
[362658832,1748388638323,-430.0,0.0002,2]
[362658833,1748388638332,-430.0,0.0002,2]
[362658834,1748388638342,-500.0,0.00020041,2]
[362658835,1748388638351,-500.0,0.00020041,2]
[362658836,1748388638361,-500.0,0.00020041,2]
[362658837,1748388638370,-544.12138684,0.00020041,2]
[362658838,1748388638379,-500.0,0.00020041,2]
[362658839,1748388638389,-500.0,0.00020041,2]
[362658840,1748388638399,-500.0,0.00020041,2]
[362658841,1748388638408,-500.0,0.00020041,2]
[362658842,1748388638417,-500.0,0.00020041,2]
[362658843,1748388638427,-500.0,0.00020041,2]
[362658844,1748388638436,-500.0,0.00020041,2]
[362658845,1748388638445,-500.0,0.00020041,2]
[362658846,1748388638455,-377.94980366,0.00020041,2]
[362658847,1748388638464,-404.07454375,0.00020041,2]
[362658848,1748388638474,-500.0,0.00020041,2]
[362658849,1748388638484,-500.0,0.00020041,2]
[362658850,1748388638493,-500.0,0.00020041,2]
[362658851,1748388638503,-500.0,0.00020041,2]
[362658852,1748388638513,-337.10102878,0.00020041,2]
[362658853,1748388638523,-500.0,0.00020041,2]
[362658854,1748388638534,-500.0,0.00020041,2]
[362658855,1748388638543,-500.0,0.00020041,2]
[362658856,1748388638553,-600.0,0.00020041,2]
[362658857,1748388638563,-500.0,0.00020041,2]
[362658858,1748388638572,-500.0,0.00020041,2]
[362658859,1748388638582,-200.0,0.00020041,2]
[362658860,1748388638591,-22369.36182352,0.00020042,2]
[362658861,1748388638600,-450.0,0.00020042,2]
[362658862,1748388638610,-430.0,0.00020042,2]
[362658863,1748388638619,-289.63593826,0.00020042,2]
[362658864,1748388638628,-450.0,0.00020042,2]
[362658865,1748388638638,-450.0,0.00020042,2]
[362658866,1748388638790,-400.0,0.00020042,2]
[362658868,1748388638800,-330.00234385,0.00020042,2]
[362658870,1748388638810,-450.0,0.00020042,2]
[362658872,1748388638819,-450.0,0.00020042,2]
[362658873,1748388638828,-400.0,0.00020042,2]
[362658875,1748388638838,-450.0,0.00020042,2]
[362658877,1748388638847,-430.0,0.00020042,2]
[362658879,1748388638857,-430.0,0.00020042,2]
[362658881,1748388638866,-430.0,0.00020042,2]
[362658883,1748388638876,-451.01,0.00020042,2]
[362658884,1748388638886,-787.91,0.00020042,2]
[362658886,1748388638895,-163.02231043,0.00020042,2]
[362658888,1748388638904,-430.0,0.00020042,2]
[362658890,1748388638913,-430.0,0.00020042,2]
[362658892,1748388638923,-430.0,0.00020042,2]
[362658894,1748388638932,-430.0,0.00020042,2]
[362658895,1748388638942,-430.0,0.00020042,2]
[362658897,1748388638951,-430.0,0.00020042,2]
[362658899,1748388638961,-430.0,0.00020042,2]
[362658901,1748388638972,-430.0,0.00020042,2]
[362658903,1748388638981,-430.0,0.00020042,2]
[362658905,1748388638991,-430.0,0.00020042,2]
[362658906,1748388639000,-430.0,0.00020042,2]
[362658908,1748388639009,-430.0,0.00020042,2]
[362658910,1748388639018,-430.0,0.00020042,2]
[362658912,1748388639031,-430.0,0.00020042,2]
[362658914,1748388639040,-430.0,0.00020042,2]
[362658916,1748388639050,-430.0,0.00020042,2]
[362658918,1748388639060,-430.0,0.00020042,2]
[362658920,1748388639070,-430.0,0.00020042,2]
[362658922,1748388639079,-430.0,0.00020042,2]
[362658924,1748388639088,-350.0,0.00020042,2]
[362658926,1748388639099,-430.0,0.00020042,2]
[362658928,1748388639109,-430.0,0.00020042,2]
[362658930,1748388639119,-430.0,0.00020042,2]
[362658932,1748388639129,-430.0,0.00020042,2]
[362658934,1748388639138,-430.0,0.00020042,2]
[362658936,1748388639148,-470.0,0.00020043,2]
[362658938,1748388639157,-430.0,0.00020043,2]
[362658940,1748388639168,-430.0,0.00020043,2]
[362658942,1748388639178,-430.0,0.00020043,2]
[362658944,1748388639188,-312.08239734,0.00020043,2]
[362658946,1748388639198,-430.0,0.00020043,2]
[362658948,1748388639207,-430.0,0.00020043,2]
[362658950,1748388639217,-430.0,0.00020043,2]
[362658952,1748388639227,-430.0,0.00020043,2]
[362658953,1748388639236,-430.0,0.00020043,2]
[362658954,1748388639245,-430.0,0.00020043,2]
[362658955,1748388639255,-430.0,0.00020043,2]
[362658956,1748388639264,-430.0,0.00020043,2]
[362658957,1748388639273,-157.98004682,0.00020043,2]
[362658958,1748388639286,-272.01995318,0.00020043,2]
[362658959,1748388639296,-430.0,0.00020043,2]
[362658960,1748388639305,-430.0,0.00020043,2]
[362658961,1748388639314,-430.0,0.00020043,2]
[362658962,1748388639324,-430.0,0.00020043,2]
[362658963,1748388639333,-430.0,0.00020043,2]
[362658964,1748388639343,-430.0,0.00020043,2]
[362658965,1748388639354,-430.0,0.00020043,2]
[362658966,1748388639363,-430.0,0.00020043,2]
[362658967,1748388639372,-430.0,0.00020043,2]
[362658968,1748388639382,-430.0,0.00020043,2]
[362658969,1748388639392,-430.0,0.00020043,2]
[362658970,1748388639401,-482.9,0.00020043,2]
[362658971,1748388639410,-500.0,0.00020043,2]
[362658972,1748388639420,-430.0,0.00020043,2]
[362658973,1748388639429,-430.0,0.00020043,2]
[362658974,1748388639438,-430.0,0.00020043,2]
[362658975,1748388639447,-430.0,0.00020043,2]
[362658976,1748388639456,-430.0,0.00020043,2]
[362658977,1748388639466,-430.0,0.00020043,2]
[362658978,1748388639475,-430.0,0.00020043,2]
[362658979,1748388639484,-430.0,0.00020043,2]
[362658980,1748388639494,-430.0,0.00020043,2]
[362658981,1748388639503,-430.0,0.00020043,2]
[362658982,1748388639512,-430.0,0.00020043,2]
[362658983,1748388639522,-406.24,0.00020043,2]
[362658984,1748388639531,-430.0,0.00020043,2]
[362658985,1748388639540,-430.0,0.00020043,2]
[362658986,1748388639548,-430.0,0.00020043,2]
[362658987,1748388639558,-430.0,0.00020043,2]
[362658988,1748388639567,-430.0,0.00020043,2]
[362658989,1748388639575,-170.29163978,0.00020043,2]
[362658990,1748388639587,-358.20836022,0.00020043,2]
[362658991,1748388639596,-430.0,0.00020043,2]
[362658993,1748388639604,-127.53062775,0.00020043,2]
[362659060,1748388640317,-300.0,0.00019042,2]
[362659062,1748388640327,-430.0,0.00019178,2]
[362659064,1748388640336,-302.46937225,0.00020043,2]
[362659066,1748388640346,-430.0,0.00020043,2]
[362659068,1748388640355,-430.0,0.00020043,2]
[362659070,1748388640364,-430.0,0.00020043,2]
[362659072,1748388640373,-430.0,0.00020043,2]
[362659074,1748388640383,-430.0,0.00020043,2]
[362659076,1748388640392,-430.0,0.00020043,2]
[362659078,1748388640401,-430.0,0.00020043,2]
[362659080,1748388640411,-430.0,0.00020043,2]
[362659082,1748388640420,-430.0,0.00020043,2]
[362659084,1748388640430,-310.96607439,0.00020043,2]
[362659086,1748388640446,-179.35392561,0.00020043,2]
[362659088,1748388640455,-500.4,0.00020043,2]
[362659090,1748388640465,-430.0,0.00020043,2]
[362659092,1748388640474,-430.0,0.00020043,2]
[362659094,1748388640484,-430.0,0.00020043,2]
[362659096,1748388640494,-430.0,0.00020043,2]
[362659098,1748388640505,-430.0,0.00020043,2]
[362659100,1748388640515,-430.0,0.00020043,2]
[362659102,1748388640525,-430.0,0.00020043,2]
[362659104,1748388640534,-430.0,0.00020043,2]
[362659106,1748388640544,-430.0,0.00020043,2]
[362659108,1748388640553,-430.0,0.00020043,2]
[362659110,1748388640563,-430.0,0.00020043,2]
[362659112,1748388640572,-430.0,0.00020043,2]
[362659114,1748388640581,-449.86386932,0.00020043,2]
[362659116,1748388640591,-430.0,0.00020043,2]
[362659118,1748388640600,-430.0,0.00020043,2]
[362659120,1748388640609,-430.0,0.00020043,2]
[362659122,1748388640618,-430.0,0.00020043,2]
[362659124,1748388640627,-430.0,0.00020043,2]
[362659126,1748388640636,-430.0,0.00020043,2]
[362659128,1748388640646,-430.0,0.00020043,2]
[362659130,1748388640655,-430.0,0.00020043,2]
[362659132,1748388640664,-430.0,0.00020043,2]
[362659134,1748388640676,-303.52664134,0.00020043,2]
[362659136,1748388640688,-146.47335866,0.00020043,2]
[362659138,1748388640698,-430.0,0.00020043,2]
[362659141,1748388640707,-430.0,0.00020043,2]
[362659143,1748388640716,-430.0,0.00020043,2]
[362659145,1748388640725,-430.0,0.00020043,2]
[362659147,1748388640735,-457.37334497,0.00020044,2]
[362659149,1748388640746,-42.62665503,0.00020044,2]
[362659151,1748388640755,-430.0,0.00020044,2]
[362659153,1748388640764,-430.0,0.00020044,2]
[362659155,1748388640774,-248.50131098,0.00020044,2]
[362659374,1748388643065,-370.0,0.00019178,2]
[362659375,1748388643075,-91.97081591,0.00020042,2]
[362659376,1748388643086,-338.02918409,0.00020042,2]
[362659377,1748388643098,-181.49868902,0.00020044,2]
[362659379,1748388643108,-521.18,0.00020044,2]
[362659381,1748388643118,-430.0,0.00020044,2]
[362659383,1748388643127,-430.0,0.00020044,2]
[362659385,1748388643137,-158.0,0.00020044,2]
[362659387,1748388643147,-191.20435842,0.00020045,2]
[362659397,1748388643284,-238.79564158,0.00020045,2]
[362659398,1748388643294,-235.46014292,0.00020045,2]
[362659399,1748388643303,-400.0,0.00020045,2]
[362659400,1748388643313,-430.0,0.00020045,2]
[362659401,1748388643323,-430.0,0.00020045,2]
[362659402,1748388643332,-430.0,0.00020045,2]
[362659403,1748388643341,-430.0,0.00020045,2]
[362659405,1748388643350,-430.0,0.00020045,2]
[362659407,1748388643360,-430.0,0.00020045,2]
[362659409,1748388643369,-430.0,0.00020045,2]
[362659411,1748388643379,-430.0,0.00020045,2]
[362659413,1748388643388,-430.0,0.00020045,2]
[362659415,1748388643398,-430.0,0.00020045,2]
[362659417,1748388643408,-342.87558834,0.00020045,2]
[362659418,1748388643417,-430.0,0.00020045,2]
[362659420,1748388643428,-430.0,0.00020045,2]
[362659422,1748388643438,-430.0,0.00020045,2]
[362659424,1748388643447,-508.17513862,0.00020045,2]
[362659426,1748388643456,-533.18995938,0.00020045,2]
[362659428,1748388643466,-430.0,0.00020045,2]
[362659430,1748388643476,-430.0,0.00020045,2]
[362659432,1748388643485,-430.0,0.00020045,2]
[362659434,1748388643495,-430.0,0.00020045,2]
[362659436,1748388643504,-430.0,0.00020045,2]
[362659438,1748388643513,-430.0,0.00020045,2]
[362659440,1748388643523,-430.0,0.00020045,2]
[362659442,1748388643532,-430.0,0.00020045,2]
[362659444,1748388643541,-430.0,0.00020045,2]
[362659446,1748388643551,-430.0,0.00020045,2]
[362659448,1748388643560,-430.0,0.00020045,2]
[362659450,1748388643570,-545.73,0.00020045,2]
[362659452,1748388643580,-430.0,0.00020045,2]
[362659454,1748388643590,-430.0,0.00020045,2]
[362659456,1748388643600,-290.00915493,0.00020045,2]
[362659458,1748388643609,-450.0,0.00020045,2]
[362659460,1748388643619,-430.0,0.00020045,2]
[362659462,1748388643628,-430.0,0.00020045,2]
[362659464,1748388643638,-430.0,0.00020045,2]
[362659466,1748388643647,-430.0,0.00020045,2]
[362659468,1748388643656,-430.0,0.00020045,2]
[362659470,1748388643666,-430.0,0.00020045,2]
[362659472,1748388643676,-430.0,0.00020045,2]
[362659474,1748388643686,-430.0,0.00020045,2]
[362659476,1748388643695,-430.0,0.00020045,2]
[362659478,1748388643705,-430.0,0.00020045,2]
[362659480,1748388643714,-430.0,0.00020045,2]
[362659482,1748388643723,-430.0,0.00020045,2]
[362659484,1748388643733,-430.0,0.00020045,2]
[362659486,1748388643742,-430.0,0.00020045,2]
[362659488,1748388643751,-430.0,0.00020045,2]
[362659490,1748388643760,-430.0,0.00020045,2]
[362659492,1748388643770,-545.34,0.00020045,2]
[362659494,1748388643781,-430.0,0.00020045,2]
[362659496,1748388643790,-430.0,0.00020045,2]
[362659498,1748388643800,-430.0,0.00020045,2]
[362659500,1748388643809,-430.0,0.00020045,2]
[362659502,1748388643819,-430.0,0.00020045,2]
[362659504,1748388643828,-463.16230889,0.00020045,2]
[362659505,1748388643838,-450.0,0.00020045,2]
[362659507,1748388643847,-430.0,0.00020045,2]
[362659509,1748388643856,-430.0,0.00020045,2]
[362659511,1748388643866,-430.0,0.00020045,2]
[362659513,1748388643875,-325.235539,0.00020187,2]
[362659515,1748388643885,-252.21511058,0.00020216,2]
[362659517,1748388643894,-403.48,0.00020273,2]
[362659519,1748388643903,-430.0,0.00020273,2]
[362659521,1748388643913,-169.5,0.00020273,2]
[362659523,1748388643922,-430.0,0.00020273,2]
[362659525,1748388643932,-430.0,0.00020273,2]
[362659527,1748388643941,-160.0,0.00020308,2]
[362659529,1748388643951,-842.5625,0.00020308,2]
[362659531,1748388643960,-229.18805157,0.00020308,2]
[362659534,1748388643970,-160.0,0.00020308,2]
[362659536,1748388643980,-160.0,0.00020308,2]
[362659538,1748388643989,-287.30133394,0.00020316,2]
[362659540,1748388643998,-451.01,0.00020316,2]
[362659542,1748388644008,-787.91,0.00020316,2]
[362659544,1748388644017,-430.0,0.00020316,2]
[362659546,1748388644034,-430.0,0.00020316,2]